Cogmind - Beta 16 @@@ ROGUE MODE // 2026.01.03 @ 19:07:11 Player: Carpathian Result: Destroyed by G-47 Trooper with Particle Gun Performance ------------- Evolutions (2) 1000 Regions Visited (5) 1000 Robots Destroyed (32) 160 Value Destroyed (924) 924 Prototype IDs (3) 60 Alien Tech Used (0) 0 Bonus (107) 107 TOTAL SCORE: 3251 Bonus ------- Follower Combat Kills 107 Cogmind --------- Core Integrity 0/550 Matter 202/300 Energy 70/100 System Corruption 0% Temperature Cool (9) Movement Core (400) Ox7 Location -8/Materials Parts ------- > --- POWER (1) -------- (None) > --- PROPULSION (2) --- (None) > --- UTILITY (6) ------ Large Storage Unit > --- WEAPON (2) ------- Maul > --- INVENTORY (15) --- Light Nuclear Core Aluminum Leg VSS Leg Improved Hover Unit Improved Heat Sink Compact Matter Pod (150) Improved Salvage Targeting Computer Improved EM Pulse Cannon Heavy Particle Cannon Shotgun Minigun Peak State ------------ > --- POWER ------------ Ion Engine > --- PROPULSION ------- Armored Treads VSS Leg > --- UTILITY ---------- Large Storage Unit Experimental Sensor Array ECM Suite > --- WEAPON ----------- Heavy Ion Cannon Gauss Rifle > --- INVENTORY -------- Light Nuclear Core Aluminum Leg Aluminum Leg Improved Hover Unit Improved Heat Sink Compact Matter Pod Improved Salvage Targeting Computer Improved EM Pulse Cannon Heavy Particle Cannon Shotgun Minigun High-powered Shotgun Maul [Rating: 29] Favorites ----------- Power Reinforced Ion Engine Engine Reinforced Ion Engine Propulsion Light Treads Treads Light Treads Leg Aluminum Leg Utility Large Storage Unit Device ECM Suite Storage Large Storage Unit Processor Targeting Computer Protection Hardened Medium Armor Plating Weapon Medium Laser Energy Gun Medium Laser Energy Cannon Heavy Particle Cannon Ballistic Gun Heavy Assault Rifle Launcher Grenade Launcher Impact Weapon Maul Build | -11 -10 -10 -9 -9 -8 ------- Run | Yrd Mat Min Mat Min Mat Slots Evolved 4 | . . . 2 . 2 Power . | . . . . . . Propulsion . | . . . . . . Utility 4 | . . . 2 . 2 Weapon . | . . . . . . Parts Attached 32 | 7 4 7 2 . 12 Power 3 | 1 1 . . . 1 Engine 3 | 1 1 . . . 1 Core . | . . . . . . Reactor . | . . . . . . Propulsion 9 | 2 . 4 . . 3 Treads 5 | 2 . 2 . . 1 Leg 4 | . . 2 . . 2 Wheel . | . . . . . . Hover . | . . . . . . Flight . | . . . . . . Utility 6 | 1 1 1 1 . 2 Device 2 | . . 1 . . 1 Storage 2 | 1 1 . . . . Processor 1 | . . . 1 . . Hackware . | . . . . . . Protection 1 | . . . . . 1 Artifact . | . . . . . . Weapon 14 | 3 2 2 1 . 6 Energy Gun 4 | 3 1 . . . . Energy Cannon 2 | . . . . . 2 Ballistic Gun 5 | . 1 . 1 . 3 Ballistic Cannon . | . . . . . . Launcher 2 | . . 1 . . 1 Special Weapon . | . . . . . . Impact Weapon 1 | . . 1 . . . Slashing Weapon . | . . . . . . Piercing Weapon . | . . . . . . Special Melee Weapon . | . . . . . . Unidentified Prototypes 1 | . . . . . 1 Parts Lost 12 | . . 2 . . 10 Power . | . . . . . . Propulsion 2 | . . . . . 2 Utility 4 | . . . . . 4 Weapon 6 | . . 2 . . 4 Highest Loss Streak 7 | . . 1 . . 7 To Critical Strikes . | . . . . . . Average Backups 6 | 1 5 5 6 6 9 Power . | . 1 1 1 1 . Propulsion 1 | . 2 1 1 1 2 Utility 1 | . . 1 2 2 2 Weapon 2 | . 2 1 2 2 3 Tool/Special . | . . . . . . Unused Backups 10 | . . . . . 10 Power 1 | . . . . . 1 Propulsion 4 | . . . . . 4 Utility 3 | . . . . . 3 Weapon 2 | . . . . . 2 Tool/Special . | . . . . . . Average Slot Usage (%) 81 | . 85 89 87 88 65 Engine 11 | . 14 14 11 11 8 Treads 16 | . 28 10 22 22 14 Leg 6 | . . 17 . . 1 Device 8 | . . 6 11 11 11 Storage 11 | . 14 14 11 11 9 Processor 2 | . . . 11 11 1 Energy Gun 8 | . 24 14 . . . Ballistic Gun 5 | . 3 . 10 11 9 Launcher 3 | . . 4 5 . 3 Impact Weapon 4 | . . 6 5 11 1 Peak Build Rating 29 | 6 7 10 12 12 29 Average Rating 11 | 4 6 8 11 12 17 On Entrance 7 | . 6 7 10 12 12 Avg Prop Armor Cover (%) . | . . . . . . Naked Turns . | . . . . . . Heaviest Build 43 | 12 34 37 38 38 43 Greatest Support 40 | 40 40 40 40 40 40 Greatest Overweight (x) 12 | . . 1 . . 12 Average Overweight (x) . | . . . . . . Largest Inventory Capacity 15 | 8 15 15 15 15 15 Average Capacity 13 | 7 9 15 15 15 15 Most Carried 14 | 4 6 9 7 6 14 Average Carried 6 | 1 5 5 6 6 9 Final Capacity 15 | 8 15 15 15 15 15 Final Carried 11 | 4 5 8 6 6 11 Class Distribution -------------------- 96% | Mutant 3% | Scavenger-Mutant Dominant Class ---------------- Mutant | -10/Materials Mutant | -10/Mines Mutant | -9/Materials Mutant | -9/Mines Mutant | -8/Materials Resources | -11 -10 -10 -9 -9 -8 ----------- Run | Yrd Mat Min Mat Min Mat Matter Collected 794 | 161 86 231 67 11 238 Remotely . | . . . . . . Salvage Created 877 | . 213 207 83 20 354 Parts 62 | . 17 14 1 . 30 Haulers Intercepted . | . . . . . . Recyclers Shooed 2 | . 1 . . . 1 Parts Field Recycled . | . . . . . . Retrieved Matter . | . . . . . . Parts Self-Destructed . | . . . . . . Prevented . | . . . . . . Parts Restored . | . . . . . . Kills | -11 -10 -10 -9 -9 -8 ------- Run | Yrd Mat Min Mat Min Mat Combat Hostiles Destroyed 26 | . 8 6 1 . 11 Melee 1 | . . 1 . . . Guns 11 | . 8 . . . 3 Cannons 1 | . . . . . 1 AOE 11 | . . 4 . . 7 Classes Destroyed 9 | . 2 1 2 . 4 Worker 1 | . . . . . 1 Builder 3 | . . . 1 1 1 Tunneler 1 | . . . 1 . . Watcher 1 | . . . . . 1 Swarmer 8 | . 4 . . . 4 Grunt 10 | . 4 4 . . 2 Sentry 5 | . . 2 1 . 2 Specialist 2 | . . . . . 2 Hunter 1 | . . . . . 1 Best Kill Streak 9 | . 6 2 3 1 9 Combat Bots Only 7 | . 6 2 1 . 7 Max Kills in Single Turn 6 | . 1 2 1 1 6 Gunslinging . | . . . . . . Exploded 4 | . . 2 . . 4 Melee 1 | . . 1 . . . Uniques/NPCs Destroyed . | . . . . . . Combat | -11 -10 -10 -9 -9 -8 -------- Run | Yrd Mat Min Mat Min Mat Hostile Shots Fired 225 | . 31 40 17 . 137 Missed 63 | . 6 14 4 . 39 Hits 162 | . 25 26 13 . 98 Projectile 162 | . 25 26 13 . 98 Critical Strikes 7 | . . 1 1 . 5 Damage Taken 2704 | . 249 479 209 . 1767 Core 602 | . 29 12 . . 561 Absorbed by Shields . | . . . . . . Core Remaining (%) 94 | 100 . 83 . 100 . Volleys Fired 77 | . 19 14 6 . 38 Largest 2 | . 2 2 1 . 2 Hottest 103 | . 100 100 23 . 103 Shots Fired 121 | . 33 26 6 . 56 Gun 100 | . 33 19 6 . 42 Cannon 7 | . . . . . 7 Launcher 14 | . . 7 . . 7 Special . | . . . . . . Kinetic 56 | . 8 . 6 . 42 Thermal 51 | . 25 19 . . 7 Explosive 14 | . . 7 . . 7 Electromagnetic . | . . . . . . Robot Hit Streak 7 | . 7 5 3 . 7 Robot Miss Streak 4 | . 2 4 1 . 4 Penetration Max . | . . . . . . Secondary Targets . | . . . . . . Shots Hit Robots 77 | . 18 17 9 1 32 Core Hits 44 | . 12 9 . . 23 Critical Kills 1 | . . 1 . . . Critical Parts Destroyed 2 | . . . 2 . . Critical Strikes 4 | . 1 1 2 . . Burn 1 | . 1 . . . . Smash 3 | . . 1 2 . . Melee Attacks 14 | . . 4 7 1 2 Impact 14 | . . 4 7 1 2 Slashing . | . . . . . . Piercing . | . . . . . . Sneak Attacks 2 | . . . 1 1 . Combat Hostiles . | . . . . . . Follow-up Attacks . | . . . . . . Damage Inflicted 2425 | . 225 525 255 87 1333 Guns 880 | . 225 112 78 . 465 Cannons 77 | . . . . . 77 Explosions 1086 | . . 321 . . 765 Melee 382 | . . 92 177 87 26 Ramming . | . . . . . . Kinetic 567 | . 24 . 78 . 465 Thermal 390 | . 201 112 . . 77 Explosive 1086 | . . 321 . . 765 Electromagnetic . | . . . . . . Impact 382 | . . 92 177 87 26 Slashing . | . . . . . . Piercing . | . . . . . . Highest Corruption . | . . . . . . Average Corruption . | . . . . . . Corruption Purged . | . . . . . . Corruption Blocked . | . . . . . . Overload Shots . | . . . . . . Overflow Damage 230 | . . 3 137 67 23 Projectiles . | . . . . . . Explosions 23 | . . . . . 23 Melee 207 | . . 3 137 67 . Knockbacks 1 | . . . 1 . . Impact 1 | . . . 1 . . Kinetic . | . . . . . . Secondary . | . . . . . . Self-Inflicted Damage 104 | . . 100 . . 4 Shots 6 | . . 5 . . 1 Rammed 1 | . . . . . 1 Targets Rammed 1 | . . . . . 1 Kicked . | . . . . . . Crushed . | . . . . . . Highest Temperature 354 | . 354 282 1 . 96 Average Temperature 117 | . 144 132 1 . 33 Received Heat Transfer 771 | . 72 186 45 . 468 Effects 5 | . 3 2 . . . Shutdowns 1 | . 1 . . . . Interference 3 | . 1 2 . . . Short Circuit 1 | . 1 . . . . Siege Activations . | . . . . . . Martial Activations . | . . . . . . Shielding Activations . | . . . . . . Robots Disrupted . | . . . . . . Combat Hostiles . | . . . . . . Robots Corrupted 3 | . . 1 2 . . Combat Hostiles 2 | . . 1 1 . . Parts Fried 10 | . . 1 5 4 . Impact Corruptions 8 | . . 1 5 2 . Robots Melted . | . . . . . . Combat Hostiles . | . . . . . . Parts Melted 1 | . . 1 . . . Heat Transferred 1110 | . 666 333 . . 111 Parts Sabotaged . | . . . . . . Parts Stolen . | . . . . . . Parts Stripped . | . . . . . . Power Chain Reactions . | . . . . . . Alert | -11 -10 -10 -9 -9 -8 ------- Run | Yrd Mat Min Mat Min Mat Maximum Alert Level 1 | . . . . . 1 Low Security (%) 99 | 100 100 100 100 100 96 Level 1 . | . . . . . 3 Level 2 . | . . . . . . Level 3 . | . . . . . . Level 4 . | . . . . . . Level 5 . | . . . . . . High Security . | . . . . . . Max Security . | . . . . . . Peak Influence 210 | . 140 86 30 5 210 Initial 34 | . . 34 . . . Average 43 | . 60 18 6 . 103 Influence Increases 858 | . 190 166 45 5 452 Destroy 0b10 Robot/C 580 | . 160 120 20 . 280 Destroy 0b10 Robot/NC 40 | . . . 10 5 25 Destroy Leader 124 | . 30 20 10 . 64 Allied During Kill 14 | . . . . . 14 Successful Hack 5 | . . . 5 . . Disable Machine 15 | . . . . . 15 Destroy Structure 80 | . . 26 . . 54 Influence Decreases 796 | . 100 256 45 5 390 Entered New Map 56 | . . 56 . . . Time Decay 600 | . 100 190 45 5 260 Lost Part 100 | . . 10 . . 90 Lost Ally 40 | . . . . . 40 Squads Dispatched 6 | . 2 . . . 4 Investigation 1 | . 1 . . . . Extermination . | . . . . . . Reinforcement 4 | . 1 . . . 3 Assault . | . . . . . . Garrison 1 | . . . . . 1 Intercept . | . . . . . . Searches Triggered . | . . . . . . Construction Impeded . | . . . . . . Haulers Reinforced . | . . . . . . Active Scanning Responses . | . . . . . . Cargo Convoy Interrupts . | . . . . . . Stealth | -11 -10 -10 -9 -9 -8 --------- Run | Yrd Mat Min Mat Min Mat Distress Signals 4 | . 1 . 1 . 2 Communications Jammed . | . . . . . . Distress Signals . | . . . . . . Times Spotted 49 | . 10 6 5 . 28 Peak Tracking Total 8 | . 6 2 3 . 8 Tactical Retreats 4 | . . . 1 . 3 ECM-based Alert Blocks 6 | . . . 1 . 5 Traps | -11 -10 -10 -9 -9 -8 ------- Run | Yrd Mat Min Mat Min Mat Traps Triggered . | . . . . . . Indirectly . | . . . . . . Trap Hack Attempts . | . . . . . . Triggered . | . . . . . . Disarmed . | . . . . . . Reprogrammed . | . . . . . . Reused . | . . . . . . Traps Extracted . | . . . . . . Installed . | . . . . . . Triggered . | . . . . . . Machines | -11 -10 -10 -9 -9 -8 ---------- Run | Yrd Mat Min Mat Min Mat Machines Disabled 1 | . . . . . 1 Max in Single Turn 1 | . . . . . 1 Machines Repaired . | . . . . . . Machines Dismantled . | . . . . . . Machines Sabotaged . | . . . . . . Overloaded Fab Kills . | . . . . . . Hacking | -11 -10 -10 -9 -9 -8 --------- Run | Yrd Mat Min Mat Min Mat Machines Accessed 2 | . 1 . 1 . . Terminals 2 | . 1 . 1 . . Fabricators . | . . . . . . Repair Stations . | . . . . . . Recycling Units . | . . . . . . Scanalyzers . | . . . . . . Garrison Access . | . . . . . . Total Hacks 4 | . 3 . 1 . . Successful 4 | . 3 . 1 . . Failed . | . . . . . . Catastrophic . | . . . . . . Database Lockouts . | . . . . . . Manual . | . . . . . . Terminals 4 | . 3 . 1 . . Fabricators . | . . . . . . Repair Stations . | . . . . . . Recycling Units . | . . . . . . Scanalyzers . | . . . . . . Garrison Access . | . . . . . . Terminal Hacks 4 | . 3 . 1 . . Record 3 | . 3 . . . . Prototype ID Bank 1 | . . . 1 . . Fabricator Hacks . | . . . . . . Repair Station Hacks . | . . . . . . Recycling Unit Hacks . | . . . . . . Scanalyzer . | . . . . . . Garrison Access Hacks . | . . . . . . Unauthorized Hacks . | . . . . . . Terminals . | . . . . . . Fabricators . | . . . . . . Repair Stations . | . . . . . . Recycling Units . | . . . . . . Scanalyzers . | . . . . . . Garrison Access . | . . . . . . Data Cores Recovered . | . . . . . . Used . | . . . . . . Hacking Detections 1 | . 1 . . . . Full Trace Events 1 | . 1 . . . . Feedback Events . | . . . . . . Feedback Blocked . | . . . . . . Robot Schematics Acquired . | . . . . . . Robots Built . | . . . . . . Authchips . | . . . . . . Time . | . . . . . . Total Robot Build Rating . | . . . . . . Part Schematics Acquired . | . . . . . . Parts Built . | . . . . . . Authchips . | . . . . . . Time . | . . . . . . Total Part Build Rating . | . . . . . . Part Studies Acquired . | . . . . . . Parts Repaired . | . . . . . . Time . | . . . . . . Parts Recycled . | . . . . . . Recycled Matter . | . . . . . . Retrieved Matter . | . . . . . . Retrieved Components . | . . . . . . Parts Scanalyzed . | . . . . . . Part Schematics Acquired . | . . . . . . Parts Damaged . | . . . . . . Bothacking | -11 -10 -10 -9 -9 -8 ------------ Run | Yrd Mat Min Mat Min Mat Used RIF Installer . | . . . . . . Robots Hacked . | . . . . . . Non-combat . | . . . . . . Combat . | . . . . . . Robot Hacks Applied . | . . . . . . Relay Couplers Released . | . . . . . . Fabnet Peak Effective % . | . . . . . . Robots Rewired . | . . . . . . Allies Hacked . | . . . . . . Hacks Repelled . | . . . . . . Allies | -11 -10 -10 -9 -9 -8 -------- Run | Yrd Mat Min Mat Min Mat Total Allies 3 | . . . . 3 . Largest Group 3 | . . . . 3 3 Highest-Rated Group 40 | . . . . 40 40 Highest-Rated Ally 16 | . . . . 16 16 Total Orders . | . . . . . . Ally Attacks 35 | . . . . . 35 Total Damage 346 | . . . . . 346 Kills 5 | . . . . . 5 Allies Corrupted . | . . . . . . Allies Melted . | . . . . . . Intel | -11 -10 -10 -9 -9 -8 ------- Run | Yrd Mat Min Mat Min Mat Active Infowar (turns) 1568 | . . 364 250 280 674 Sensors 248 | . . . . . 248 ECM 1553 | . . 364 250 280 659 Robot Analysis Total . | . . . . . . Derelict Logs Recovered 2 | . . 2 . . . Drone Launches . | . . . . . . Drone Recoveries . | . . . . . . Exploration | -11 -10 -10 -9 -9 -8 ------------- Run | Yrd Mat Min Mat Min Mat Turns Passed 2411 | 115 323 760 250 280 683 Spaces Moved 1020 | 69 146 307 100 154 244 Core 16 | 11 . . . . 5 Treads 792 | 58 146 109 100 154 225 Legs 212 | . . 198 . . 14 Wheels . | . . . . . . Hover . | . . . . . . Flight . | . . . . . . Fastest Speed 50 | 50 160 160 160 160 160 Average Speed 167 | 142 160 179 160 160 172 Slowest Speed 650 | 160 160 190 160 160 650 Overloaded Moves . | . . . . . . Propulsion Burnouts . | . . . . . . Robots Hopped . | . . . . . . Potential Cave-ins . | . . . . . . Cave-ins Triggered . | . . . . . . Exploration Rate (%) 21 | 5 21 52 9 21 20 Regions Visited 5 Branch Regions 2 Pre-discovered Areas 1 | . . 1 . . . Known Exits Taken 1 | . . . . 1 . Unknown Exits Taken 4 | 1 1 1 1 . . Scrap Searched 1 | . . 1 . . . Spaces Dug . | . . . . . . Terrain Destroyed 115 | . . 59 . . 56 Melee . | . . . . . . Projectile 4 | . . . . . 4 AOE 111 | . . 59 . . 52 Terrain Rammed . | . . . . . . Walls Destroyed . | . . . . . . Machines Disabled . | . . . . . . Actions | -11 -10 -10 -9 -9 -8 --------- Run | Yrd Mat Min Mat Min Mat Total 1574 | 85 204 481 169 186 449 Wait 368 | . 23 134 53 32 126 Move 1015 | 68 145 306 99 153 244 Hop . | . . . . . . Pick Up 42 | 10 6 9 . . 17 Fast Attach . | . . . . . . Attach 17 | 6 . 2 2 . 7 Detach . | . . . . . . Swap 25 | 1 6 8 2 . 8 Drop 15 | . 5 4 . . 6 Fire 77 | . 19 14 6 . 38 Melee 14 | . . 4 7 1 2 Ram . | . . . . . . Kick . | . . . . . . Crush 1 | . . . . . 1 Escape Stasis . | . . . . . . Rewire . | . . . . . . Trap . | . . . . . . Miscellaneous . | . . . . . . Route ------- -11/Scrapyard -10/Materials -10/Mines -9/Materials (discovered 2 exits: Mat / [*Min]) -9/Mines -8/Materials History --------- Turn | Location | Event 5 | -11/Scrapyard | Discovered new exit (range 16) 116 | -11/Scrapyard | Entered Materials 313 | -10/Materials | Discovered new exit (range 14) 322 | -10/Materials | Build established: Mutant 439 | -10/Materials | Entered Mines 749 | -10/Mines | Learned location of 1 exit from Materials 876 | -10/Mines | Found a damaged Exp. Sensor Array with a note attached 880 | -10/Mines | Found Prototype Device 1158 | -10/Mines | Discovered new exit (range 15) 1188 | -10/Mines | Received a Rocket Launcher from a helpful Derelict 1199 | -10/Mines | Entered Materials 1199 | -9/Materials | Evolved 2 slots: Utility x2 1200 | -9/Materials | Identified exit to Materials 1296 | -9/Materials | Discovered new exit (range 14) 1449 | -9/Materials | Entered Mines 1582 | -9/Mines | Assisted by bots powering up and referring to "LRC-V3" 1708 | -9/Mines | Discovered exit to Materials (range 7) 1729 | -9/Mines | Entered Materials 1729 | -8/Materials | Accompanied by 3 allies 1729 | -8/Materials | Evolved 2 slots: Utility x2 2148 | -8/Materials | Destroyed 7 combat bots 2155 | -8/Materials | Identified Exp. Sensor Array 2367 | -8/Materials | Garrison activated, responded to threat 2397 | -8/Materials | Core integrity fell below 50% 2404 | -8/Materials | Core integrity fell below 20% 2412 | -8/Materials | Destroyed by G-47 Trooper with Particle Gun Last Messages --------------- 02377_ Knocked back. 02378_ Acquired 14 matter. 02378_ Slug penetrates G-47 Trooper. 02382_ VSS Leg destroyed. 02384_ Gauss Rifle destroyed. 02385_ Penetrated by Slug. 02387_ O-16 Technician: "IFF HANDSHAKE FAILED. SECURING TERMINAL." 02388_ ECM Suite destroyed. 02388_ Hrd. Medium Armor Plating destroyed. 02389_ Critical hit (Burn: +37). 02393_ ALERT: Hostiles spotted, dispatching reinforcements to Terminal M009. 02396_ Hvy. Ion Cannon destroyed. 02397_ Penetrated by Slug. 02397_ Knocked back. 02398_ Acquired 1 matter. 02399_ G-47 Trooper suffers critical hit (Blast). 02399_ G-47 Trooper destroyed. 02403_ Exp. Sensor Array destroyed. 02408_ Critical hit (Burn: +37). Map ----- +----------------------------------------------------+ | | | | | | | | | | | ?????????????????????????????????????????????????? | | ?????????????????????????????????????????????????? | | ?????????????????????????????????????????????????? | | ?????????????????????????????????????????????????? | | ?????????????????????????????????????????????????? | | ?????????????????????????????????????????????????? | | ?????????????????????????????????????????????????? | | ?????????????????????????????????????????????????? | | ???????????????????????##???##???????????????????? | | ???????????????????????+ ??? ???????????????????? | | ???????????????????????# ""? ???????????????????? | | ???????????????????????# "G? ???????????????????? | | ???????????????????????# """ *##??#?##???????????? | | ???????????????????????# # ?""" #???????????? | | ???????????????????????# """ # """ ????????????? | | ???????????????????????+ """ # """ #????+??????? | | ???????????????????????#w """ # ? #??? #??????? | | ???????????????????????# + ?? #?? #??????? | | ???????????????????????# g""" # ?? ?? ##?????? | | ???????????????????????#! """ ####+### #####?? | | ???????????????????????# @""" # = ? | | ???????????????????????# gY%gg % ? | | ???????????????????????#######; * H ? | | ?????????????????????????????##% =#### #?????? | | ??????????????????????????????# % #??????????????? | | ??????????????????????????????# #??????????????? | | ??????????????????????????????#! #??????????????? | | ??????????????????????????????# #??????????????? | | ??????????????????????????????# ###????????????? | | ??????????????????????????????# = # #????????????? | | ???????????????????????######## *#####??????????? | | ???????????????????????# # ]]#??????????? | | ???????????????????????# """ # ]#??????????? | | ???????????????????????# """ + =!#??????????? | | ???????????????????????# """ # !!#??????????? | | ???????????????????????# """ # ==#??????????? | | ???????????????????????# # ==#??????????? | | ???????????????????????######## #####??????????? | | ??????????????????????????#]] #??????????????? | | ??????????????????????????#] #??????????????? | | ??????????????????????????#!! #??????????????? | | ??????????????????????????#!! #??????????????? | | ??????????????????????????#!! #???############ | | ??????????????????????????#!! ############## | | ??????????????????????????##### * " | +----------------------------------------------------+ Best States ------------- Heat Dissipation 31 Energy Generation 12 Energy Capacity 265 Matter Stores 300 Matter Capacity 300 Sight Range 16 Robot Scan Range 20 Terrain Scan Density 10 ECM Strength 1 Armor Coverage 225 Evasion (%) 50 Targeting Accuracy 5 Recoil Reduction 2 Item Schematics ----------------- None Robot Schematics ------------------ None Fabricated ------------ Nothing Repaired ---------- Nothing Studied --------- None Alien Tech Used ----------------- None Achievements -------------- For Emergencies Only Heavy Suspicion Overwhelming Resistances Are Futile Challenges ------------ None Game ------ Seed FlightMicroBrace Manual? 0 Play Time 00:17:50 Cumulative 39.8 hours Start 2026.01.03 @ 18:51:19 End 2026.01.03 @ 19:07:11 Sessions 1 Manual Loads 0 Difficulty Rogue Special Mode None Game No. 205 Rogue 205 Adventurer 0 Explorer 0 Win Type - Total 0 Types 0/0/0/0/0/0/0/0/0/0 Lore% 12 Gallery% 26 Achievement% 13 Wizard Run 0 Options --------- Layout 0 ASCII 0 Keyboard 0 Movement Arrows Keybinds 0 Fullscreen 2 Font 24/Cog Map View 76x50 Zoom Use 0% Tactical HUD 1 Map Filters NONE Filters NONE Steam 1 RUN: e898ecf8-2a40-422c-9878-42b737f47ae6